[Event "Begum Laila Alam 12th Women 2022"]
[Site "Dhaka"]
[Date "2022.05.05"]
[Round "1.1"]
[White "Noshin, Anjum"]
[Black "Anowara, Khatun"]
[Result "1-0"]
[ECO "C80"]
[WhiteElo "2065"]
[BlackElo "1243"]
[Annotator "TA"]
[PlyCount "45"]
[EventDate "2022.05.05"]
[EventType "swiss"]
[EventCountry "BAN"]
[SourceTitle "playchess.com"]
[Source "ChessBase"]
[SourceQuality "1"]
[TimeControl "5400+30"]

{[%evp 10,45,31,19,68,55,57,43,47,18,24,31,34,20,183,169,284,302,412,429,443,393,389,385,416,415,446,419,413,398,664,644,836,831,805,816,1456,1422]} 1. e4 {[%emt 0:00:04]} e5 {[%emt 0:00:17]} 2. Nf3 {[%emt 0:00:14]} Nc6 {[%emt 0:00:38]} 3. Bb5 {[%emt 0:00:05]} a6 {[%emt 0:00:58]} 4. Ba4 {[%emt 0:00:16]} Nf6 {[%emt 0:00:43]} 5. O-O {[%emt 0:00:10]} Nxe4 {[%emt 0:04:43]} 6. d4 {[%emt 0:01:41]} d6 {[%emt 0:05:49] C80: Open Ruy Lopez: Sidelines and 9 Nbd2.} (6... b5 $11) 7. dxe5 {[%emt 0:03:40] [#]} Nc5 $146 {[%emt 0:03:36]} ({Predecessor:} 7... Be7 8. exd6 Nxd6 9. Bxc6+ bxc6 10. h3 O-O 11. Re1 Bf6 12. Nd4 Bb7 13. c3 Nb5 14. Nxb5 cxb5 {½-½ (57) Fertaki,E (1089)-Apostolakaki,E (1164) Porto Rio 2016}) 8. Bxc6+ {[%emt 0:01:27]} bxc6 {[%emt 0:02:30] White is slightly better.} 9. exd6 {[%emt 0:00:47]} (9. Bg5 $5 {[%cal Rg5d8]} Qd7 10. exd6 Bxd6 11. Re1+ (11. b4 Ne6 $15) 11... Ne6 12. Nbd2 $14) 9... Bxd6 {[%emt 0:01:48]} 10. Re1+ {[%emt 0:00:24]} Be6 {[%emt 0:02:37]} 11. Bg5 {[%emt 0:11:05]} f6 $2 {[%emt 0:03:53] [#]} (11... Qc8 $11) 12. b4 $18 {[%emt 0:03:26][%cal Bb2b4,Bb4c5][%mdl 32]} O-O {[%emt 0:10:39]} (12... Ne4) (12... Ne4 $142) 13. bxc5 {[%emt 0:02:40]} Be7 {[%emt 0:04:36]} (13... Bxc5 14. Nbd2 Re8) 14. Qxd8 {[%emt 0:00:19]} Raxd8 {[%emt 0:02:49]} 15. Bd2 {[%emt 0:01:15]} (15. Rxe6 Rd1+ 16. Re1 (16. Ne1 Kf7) 16... Rxe1+ 17. Nxe1 fxg5) ({Much less strong is} 15. Rxe6 Rd1+ 16. Re1 (16. Ne1 Kf7 $16) 16... Rxe1+ 17. Nxe1 fxg5 $18) 15... Kf7 {[%emt 0:04:30]} 16. Be3 {[%emt 0:03:55]} Rd5 {[%emt 0:10:03]} 17. Nc3 {[%emt 0:00:40][%cal Bb1c3,Bc3e4,Be4g3][%mdl 32]} Rh5 {[%emt 0:03:41]} 18. Nd4 {[%emt 0:03:52]} Bd7 {[%emt 0:04:07]} 19. Ne4 {[%emt 0:03:04]} f5 $2 {[%emt 0:11:56] [#]} (19... Re8 20. Nb3 Bf8) (19... Re8 20. Nb3 Bf8) 20. Ng3 {[%emt 0:00:38] White is clearly winning.} Rg5 {[%emt 0:10:39]} 21. Bxg5 {[%emt 0:00:12]} Bxg5 {[%emt 0:01:22]} 22. Nf3 {[%emt 0:04:13]} Kg6 {[%emt 0:06:46]} 23. Ne5+ {[%emt 0:00:29] White took control after the opening.  Weighted Error Value: White=0.09 (flawless) /Black=0.81} 1-0

[Event "Begum Laila Alam 12th Women 2022"]
[Site "Dhaka"]
[Date "2022.05.05"]
[Round "1.2"]
[White "Jarin, Tasnim"]
[Black "Sultana, Sharmin Shirin"]
[Result "0-1"]
[ECO "B30"]
[WhiteElo "1243"]
[BlackElo "1992"]
[Annotator "TA"]
[PlyCount "92"]
[EventDate "2022.05.05"]
[EventType "swiss"]
[EventCountry "BAN"]
[SourceTitle "playchess.com"]
[Source "ChessBase"]
[SourceQuality "1"]
[TimeControl "5400+30"]

{[%evp 9,91,-24,-21,-208,-192,-202,-203,-267,-259,-259,-232,-233,-233,-333,-333,-339,-339,-322,-328,-325,-344,-363,-337,-389,-360,-356,-354,-382,-359,-395,-395,-390,-385,-398,-400,-475,-463,-528,-520,-519,-524,-558,-556,-545,-536,-559,-560,-597,-593,-707,-708,-703,-702,-688,-681,-736,-731,-29986,-29987,-29987,-29988,-29990,-29990,-29991,-29992,-29992,-29993,-29993,-29992,-29992,-29993,-29993,-29993,-29994,-29995,-29995,-29996,-29996,-29997,-29997,-29998,-29998,-29999,-29999]} 1. e4 {[%emt 0:00:03]} c5 {[%emt 0:00:07]} 2. Nf3 {[%emt 0:00:11]} Nc6 {[%emt 0:00:31]} 3. Nc3 {[%emt 0:00:18]} e6 {[%emt 0:00:44]} 4. Bc4 {[%emt 0:00:24]} a6 {[%emt 0:00:16]} 5. O-O {[%emt 0:00:44]} b5 {[%emt 0:00:11]} 6. Bb3 {[%emt 0:00:11] [#] B30: Sicilian: 2...Nc6 3 Bb5, lines without ...g6.} (6. Be2 $11) 6... c4 $19 {[%emt 0:00:35]} 7. Bxc4 {[%emt 0:01:32]} bxc4 {[%emt 0:00:10]} 8. d3 {[%emt 0:00:10] Black is clearly better.} cxd3 {[%emt 0:01:08]} 9. cxd3 {[%emt 0:00:13]} d6 {[%emt 0:02:54]} 10. d4 {[%emt 0:02:12]} Nf6 {[%emt 0:00:23] [#]} 11. e5 $146 {[%emt 0:00:46]} (11. d5 $142 Ne5 12. dxe6 Bxe6 13. Qa4+ Qd7 14. Qxd7+ Bxd7 15. Bg5) ({Predecessor:} 11. Re1 Be7 12. Bg5 O-O 13. Bxf6 Bxf6 14. h3 Bb7 15. d5 Na5 16. dxe6 fxe6 17. Nd4 {0-1 (35) Hoang,K (842)-De Noskowski,A (1630) Erindale 1998}) 11... dxe5 {[%emt 0:04:52]} 12. dxe5 {[%emt 0:00:12]} Qxd1 {[%emt 0:01:29]} 13. Rxd1 {[%emt 0:00:14]} Nd7 {[%emt 0:09:31]} 14. Bf4 {[%emt 0:02:30]} Bb7 {[%emt 0:03:49]} 15. h3 {[%emt 0:04:18]} Nb4 {[%emt 0:06:34]} 16. a3 {[%emt 0:03:30]} Nd5 {[%emt 0:00:37]} 17. Nxd5 {[%emt 0:00:31]} Bxd5 {[%emt 0:00:16]} 18. Nh2 {[%emt 0:02:10]} Be7 {[%emt 0:02:57]} 19. Ng4 {[%emt 0:02:27]} O-O {[%emt 0:02:53]} 20. Ne3 {[%emt 0:00:17]} Nb6 {[%emt 0:00:04]} 21. Nxd5 {[%emt 0:01:18]} Nxd5 {[%emt 0:00:03]} 22. Bg3 {[%emt 0:00:42]} a5 {[%emt 0:00:41]} 23. f4 {[%emt 0:01:14]} Bc5+ {[%emt 0:03:08]} 24. Kh1 {[%emt 0:00:31]} Rfb8 {[%emt 0:02:05]} 25. Rac1 {[%emt 0:00:55]} Be3 {[%emt 0:02:25]} 26. Rb1 {[%emt 0:00:44]} Bxf4 {[%emt 0:01:23]} 27. Bxf4 {[%emt 0:00:28]} Nxf4 {[%emt 0:00:04]} 28. Rf1 {[%emt 0:00:47]} Nd3 {[%emt 0:00:49][%csl LRb2,LRe5]} 29. b4 {[%emt 0:01:08]} axb4 {[%emt 0:00:13]} 30. axb4 {[%emt 0:00:17]} Rxb4 {[%emt 0:00:23]} 31. Rxb4 {[%emt 0:00:29]} Nxb4 {[%emt 0:00:02][%mdl 4096] Endgame KRN-KR} 32. Rf4 {[%emt 0:00:52]} Nd3 {[%emt 0:00:13][%csl LRe5,LRf4]} 33. Re4 {[%emt 0:00:15]} Nf2+ {[%emt 0:00:08] Black mates.} 34. Kg1 {[%emt 0:00:29]} Nxe4 {[%emt 0:00:04]} 35. h4 {[%emt 0:00:41]} h5 {[%emt 0:00:11][%cal Bh7h5,Bh5g4,Bg4g3][%mdl 32]} 36. Kh2 {[%emt 0:00:18]} Ra1 {[%emt 0:00:48]} 37. g3 {[%emt 0:00:23]} Ra2+ {[%emt 0:00:52]} 38. Kh3 {[%emt 0:00:10]} g6 {[%emt 0:03:54]} 39. g4 {[%emt 0:00:21]} Ra3+ {[%emt 0:00:18]} 40. Kg2 {[%emt 0:00:12]} hxg4 {[%emt 0:00:14]} 41. Kh2 {[%emt 0:00:21]} Ra2+ {[%emt 0:00:11]} 42. Kg1 {[%emt 0:00:12]} g3 {[%emt 0:00:13]} 43. Kf1 {[%emt 0:00:35]} Rf2+ {[%emt 0:01:18]} 44. Kg1 {[%emt 0:00:13]} Nd2 {[%emt 0:00:13]} 45. Kh1 {[%emt 0:00:19]} Nf3 {[%emt 0:00:14][%csl Gf2,LRe5,LRh4][%cal Rg3g2]} 46. h5 {[%emt 0:00:38]} Rh2# {[%emt 0:00:12] White did not feel at home in the position after the opening.  Weighted Error Value: White=0.77/Black=0.04 (flawless)} 0-1

[Event "Begum Laila Alam 12th Women 2022"]
[Site "Dhaka"]
[Date "2022.05.05"]
[Round "1.3"]
[White "Kazi Zarin, Tasnim"]
[Black "Nazmin, Akter"]
[Result "0-1"]
[ECO "C41"]
[WhiteElo "1899"]
[BlackElo "1219"]
[Annotator "NA RC COMBH"]
[PlyCount "120"]
[EventDate "2022.05.05"]
[EventType "swiss"]
[EventCountry "BAN"]
[SourceTitle "playchess.com"]
[Source "ChessBase"]
[SourceQuality "1"]
[TimeControl "5400+30"]

1. e4 {[%emt 0:00:13]} e5 {[%emt 0:00:15]} 2. Nf3 {[%emt 0:00:04]} d6 {[%emt 0:00:53]} 3. Bc4 {[%emt 0:01:37]} h6 {[%emt 0:00:28]} 4. d4 {[%emt 0:00:12]} exd4 {[%emt 0:01:08]} 5. Nxd4 {[%emt 0:00:20]} Nf6 {[%emt 0:00:21]} 6. O-O {[%emt 0:00:31]} g6 {[%emt 0:00:14]} 7. Re1 {[%emt 0:00:48]} Nbd7 {[%emt 0:00:14]} 8. f4 {[%emt 0:01:47]} Bg7 {[%emt 0:00:41]} 9. e5 {[%emt 0:00:15]} dxe5 {[%emt 0:01:31]} 10. fxe5 {[%emt 0:02:07]} Nh5 {[%emt 0:01:08]} 11. e6 {[%emt 0:01:02]} Kf8 {[%emt 0:00:14]} 12. e7+ {[%emt 0:01:01]} Qxe7 {[%emt 0:00:06]} 13. Rxe7 {[%emt 0:00:04]} Kxe7 {[%emt 0:00:02]} 14. Qe2+ {[%emt 0:00:54]} Kf8 {[%emt 0:00:05]} 15. Be3 {[%emt 0:02:18]} Ne5 {[%emt 0:02:06]} 16. Bb3 {[%emt 0:00:26]} a6 {[%emt 0:00:42]} 17. Nc3 {[%emt 0:00:55]} Bg4 {[%emt 0:00:20]} 18. Qf2 {[%emt 0:00:08]} Re8 {[%emt 0:01:55]} 19. h3 {[%emt 0:02:03]} Bc8 {[%emt 0:02:23]} 20. Rf1 {[%emt 0:00:30]} Nf6 {[%emt 0:02:47]} 21. Bxf7 {[%emt 0:02:00]} Nxf7 {[%emt 0:00:08]} 22. Nd5 {[%emt 0:00:03]} Bf5 {[%emt 0:05:13]} 23. Nxf6 {[%emt 0:02:57]} Bxf6 {[%emt 0:00:11]} 24. Nxf5 {[%emt 0:00:04]} gxf5 {[%emt 0:00:06]} 25. Qxf5 {[%emt 0:00:10]} Rxe3 {[%emt 0:00:16]} 26. Qxf6 {[%emt 0:00:05]} Rh7 {[%emt 0:00:18]} 27. Qd8+ {[%emt 0:00:46]} Re8 {[%emt 0:00:03]} 28. Qxc7 {[%emt 0:00:14]} Re7 {[%emt 0:00:50]} 29. Qd8+ {[%emt 0:01:18]} Re8 {[%emt 0:03:24]} 30. Qd6+ {[%emt 0:00:08]} Re7 {[%emt 0:00:29]} 31. Re1 {[%emt 0:00:50]} Nxd6 {[%emt 0:00:40]} 32. Rd1 {[%emt 0:00:43]} Rd7 {[%emt 0:00:05]} 33. b3 {[%emt 0:00:13]} b5 {[%emt 0:00:04]} 34. Rd4 {[%emt 0:00:23]} Rhe7 {[%emt 0:00:05]} 35. Rf4+ {[%emt 0:01:07]} Kg7 {[%emt 0:00:32]} 36. a4 {[%emt 0:00:17]} bxa4 {[%emt 0:00:04]} 37. Rxa4 {[%emt 0:00:02]} Ra7 {[%emt 0:00:05]} 38. Rg4+ {[%emt 0:00:37]} Kh7 {[%emt 0:00:05]} 39. Rd4 {[%emt 0:00:28]} Ne4 {[%emt 0:00:37]} 40. h4 {[%emt 0:00:45]} Ng3 {[%emt 0:00:20]} 41. Kf2 {[%emt 0:00:42]} Nf5 {[%emt 0:01:33]} 42. Ra4 {[%emt 0:00:45]} Rf7 {[%emt 0:00:05]} 43. Ke2 {[%emt 0:00:53]} Ng3+ {[%emt 0:01:12]} 44. Ke3 {[%emt 0:00:39]} Nh5 {[%emt 0:01:00]} 45. g4 {[%emt 0:00:37]} Nf6 {[%emt 0:00:33]} 46. g5 $19 {[%emt 0:00:48]} hxg5 {[%emt 0:00:04]} 47. hxg5 {[%emt 0:00:03]} Ng8 {[%emt 0:00:37]} 48. Rg4 {[%emt 0:00:23]} Kg6 {[%emt 0:00:01]} 49. b4 {[%emt 0:00:27]} Rae7+ {[%emt 0:00:07]} 50. Kd4 {[%emt 0:00:11]} Rf5 {[%emt 0:00:02]} 51. c4 {[%emt 0:00:21]} Rxg5 {[%emt 0:00:03]} 52. Rf4 {[%emt 0:00:02]} Nf6 {[%emt 0:00:07]} 53. Rf1 {[%emt 0:00:39]} Rd7+ {[%emt 0:00:02]} 54. Kc3 {[%emt 0:00:09]} Rg3+ {[%emt 0:00:15]} 55. Kc2 {[%emt 0:00:12]} Rdd3 {[%emt 0:00:22]} 56. b5 {[%emt 0:01:39]} axb5 {[%emt 0:00:03]} 57. cxb5 {[%emt 0:00:01]} Nd5 {[%emt 0:01:17]} 58. Kb2 {[%emt 0:01:44]} Rb3+ {[%emt 0:00:13]} 59. Ka2 {[%emt 0:00:47]} Rxb5 {[%emt 0:00:03]} 60. Ka1 {[%emt 0:01:04]} Ra3# {[%emt 1:21:43]} 0-1

[Event "Begum Laila Alam 12th Women 2022"]
[Site "Dhaka"]
[Date "2022.05.05"]
[Round "1.5"]
[White "Wadifa, Ahmed"]
[Black "Sanjeedah, Khanam Mitul"]
[Result "0-1"]
[ECO "C23"]
[WhiteElo "1791"]
[BlackElo "1177"]
[Annotator "NA RC COMBH"]
[PlyCount "51"]
[EventDate "2022.05.05"]
[EventType "swiss"]
[EventCountry "BAN"]
[SourceTitle "playchess.com"]
[Source "ChessBase"]
[SourceQuality "1"]
[TimeControl "5400+30"]

1. e4 {[%emt 0:00:03]} e5 {[%emt 0:00:12]} 2. Nf3 {[%emt 0:00:06]} Bc5 {[%emt 0:00:10]} 3. Bc4 {[%emt 0:00:28]} c6 {[%emt 0:00:26]} 4. O-O {[%emt 0:00:43]} d5 {[%emt 0:00:56]} 5. exd5 {[%emt 0:00:07]} cxd5 {[%emt 0:00:25]} 6. Bb5+ {[%emt 0:00:07]} Bd7 {[%emt 0:00:43]} 7. Bxd7+ {[%emt 0:00:29]} Qxd7 {[%emt 0:00:15]} 8. Nxe5 {[%emt 0:00:21]} Qf5 {[%emt 0:01:21]} 9. d4 {[%emt 0:00:12]} Bd6 {[%emt 0:00:55]} 10. Re1 {[%emt 0:02:20]} Ne7 {[%emt 0:01:23]} 11. Nc3 {[%emt 0:00:59]} a6 {[%emt 0:00:57]} 12. Ne2 {[%emt 0:06:11]} Qh5 {[%emt 0:07:42]} 13. Qd3 {[%emt 0:14:16]} f6 {[%emt 0:01:06]} 14. Ng3 {[%emt 0:00:20]} Qh4 {[%emt 0:00:45]} 15. Nf5 {[%emt 0:00:53]} Nxf5 {[%emt 0:01:08]} 16. Nf3+ {[%emt 0:00:11]} Qe4 {[%emt 0:02:39]} 17. Rxe4+ {[%emt 0:00:19]} dxe4 {[%emt 0:00:06]} 18. Qxe4+ {[%emt 0:00:05]} Ne7 {[%emt 0:00:21]} 19. Qxb7 {[%emt 0:00:31]} O-O {[%emt 0:01:46]} 20. Qxa8 {[%emt 0:00:19]} Nf5 {[%emt 0:00:04]} 21. Qd5+ {[%emt 0:00:11]} Kh8 {[%emt 0:00:31]} 22. Qxf5 {[%emt 0:00:03]} Nc6 {[%emt 0:00:56]} 23. Qd5 {[%emt 0:00:24]} Nxd4 {[%emt 0:05:09]} 24. Qxd4 {[%emt 0:00:29]} Rd8 {[%emt 0:01:09]} 25. Bf4 {[%emt 0:01:06]} Bxf4 {[%emt 0:01:29]} 26. Qxd8# {[%emt 1:12:17]} 0-1

[Event "Begum Laila Alam 12th Women 2022"]
[Site "Dhaka"]
[Date "2022.05.05"]
[Round "1.6"]
[White "Poly, Khatun"]
[Black "Hamid, Rani"]
[Result "0-1"]
[ECO "B40"]
[WhiteElo "1135"]
[BlackElo "1783"]
[Annotator "NA RC COMBH"]
[PlyCount "130"]
[EventDate "2022.05.05"]
[EventType "swiss"]
[EventCountry "BAN"]
[SourceTitle "playchess.com"]
[Source "ChessBase"]
[SourceQuality "1"]
[TimeControl "5400+30"]

1. e4 {[%emt 0:00:13]} c5 {[%emt 0:00:03]} 2. Bc4 {[%emt 0:00:30]} e6 {[%emt 0:00:10]} 3. Nf3 {[%emt 0:00:44]} a6 {[%emt 0:00:19]} 4. Ng5 {[%emt 0:01:03]} Qxg5 {[%emt 0:00:19]} 5. d4 {[%emt 0:00:48]} Qxg2 {[%emt 0:00:12]} 6. Rf1 {[%emt 0:01:02]} Qxe4+ {[%emt 0:00:08]} 7. Be3 {[%emt 0:01:09]} cxd4 {[%emt 0:00:10]} 8. Qxd4 {[%emt 0:01:24]} Qxd4 {[%emt 0:00:16]} 9. Bxd4 {[%emt 0:00:15]} Nc6 {[%emt 0:00:36]} 10. Be3 {[%emt 0:00:52]} Nf6 {[%emt 0:00:16]} 11. Nd2 {[%emt 0:00:58]} d5 {[%emt 0:00:27]} 12. Bd3 {[%emt 0:00:51]} Bd6 {[%emt 0:00:19]} 13. Nf3 {[%emt 0:01:08]} e5 {[%emt 0:00:37]} 14. Nh4 {[%emt 0:01:06]} e4 {[%emt 0:00:15]} 15. Be2 {[%emt 0:00:47]} h6 {[%emt 0:00:31]} 16. c3 {[%emt 0:00:34]} Bg4 {[%emt 0:01:06]} 17. Bxg4 {[%emt 0:00:29]} Nxg4 {[%emt 0:00:01]} 18. Nf5 {[%emt 0:00:31]} Be5 {[%emt 0:00:16]} 19. h3 {[%emt 0:00:33]} Nxe3 {[%emt 0:00:10]} 20. fxe3 {[%emt 0:00:35]} g6 {[%emt 0:00:26]} 21. Nd4 {[%emt 0:00:44]} Bxd4 {[%emt 0:00:20]} 22. cxd4 {[%emt 0:00:20]} O-O {[%emt 0:00:09]} 23. O-O-O {[%emt 0:00:24]} Kg7 {[%emt 0:01:43]} 24. h4 {[%emt 0:00:23]} Nb4 {[%emt 0:00:13]} 25. Kb1 {[%emt 0:00:17]} Rac8 {[%emt 0:00:15]} 26. a3 {[%emt 0:00:30]} Nd3 {[%emt 0:00:07]} 27. Rg1 {[%emt 0:02:14]} f5 {[%emt 0:00:20]} 28. h5 {[%emt 0:00:30]} g5 {[%emt 0:00:08]} 29. Ka2 {[%emt 0:00:26]} Rc2 {[%emt 0:00:24]} 30. Rb1 {[%emt 0:00:45]} f4 {[%emt 0:00:15]} 31. exf4 {[%emt 0:00:16]} Rxf4 {[%emt 0:00:01]} 32. Kb3 {[%emt 0:01:10]} Rh2 {[%emt 0:00:05]} 33. Rh1 {[%emt 0:00:56]} Rff2 {[%emt 0:00:07]} 34. Rxh2 {[%emt 0:01:04]} Rxh2 {[%emt 0:00:01]} 35. Kc3 {[%emt 0:00:18]} Rxh5 {[%emt 1:37:15]} 36. b4 {[%emt 1:22:41]} b5 {[%emt 0:00:00]} 37. Ra1 {[%emt 0:00:00]} Nf4 {[%emt 0:00:00]} 38. a4 {[%emt 0:00:00]} Rh3+ {[%emt 0:00:00]} 39. Kb2 {[%emt 0:00:00]} Rh2+ {[%emt 0:00:00]} 40. Kc3 {[%emt 0:00:00]} Ne2+ {[%emt 0:00:00]} 41. Kd2 {[%emt 0:00:00]} Nxd4+ {[%emt 0:00:00]} 42. Kc3 {[%emt 0:00:00]} Nc6 {[%emt 0:00:00]} 43. axb5 {[%emt 0:00:00]} axb5 {[%emt 0:00:00]} 44. Rd1 {[%emt 0:00:00]} d4+ {[%emt 0:00:00]} 45. Kb3 {[%emt 0:00:00]} Rh3+ {[%emt 0:00:00]} 46. Kb2 {[%emt 0:00:00]} e3 {[%emt 0:00:00]} 47. Rc1 {[%emt 0:00:00]} e2 {[%emt 0:00:00]} 48. Re1 {[%emt 0:00:00]} d3 {[%emt 0:00:00]} 49. Kc3 {[%emt 0:00:00]} Nxb4 {[%emt 0:00:00]} 50. Kxb4 {[%emt 0:00:00]} d2 {[%emt 0:00:00]} 51. Rxe2 {[%emt 0:00:00]} d1=Q {[%emt 0:08:00]} 52. Re7+ {[%emt 0:08:00]} Kf6 {[%emt 0:00:00]} 53. Rb7 {[%emt 0:00:00]} Qd4+ {[%emt 0:00:00]} 54. Ka5 {[%emt 0:00:00]} Ra3+ {[%emt 0:00:00]} 55. Kxb5 {[%emt 0:00:00]} Rb3+ {[%emt 0:00:00]} 56. Kc6 {[%emt 0:00:00]} Qc4+ {[%emt 0:00:00]} 57. Kd6 {[%emt 0:00:00]} Qe6+ {[%emt 0:00:00]} 58. Kc7 {[%emt 0:00:00]} Qe7+ {[%emt 0:00:00]} 59. Kc6 {[%emt 0:00:00]} Qxb7+ {[%emt 0:00:00]} 60. Kc5 {[%emt 0:00:00]} Qb5+ {[%emt 0:00:00]} 61. Kd6 {[%emt 0:00:00]} Rd3+ {[%emt 0:00:00]} 62. Kc7 {[%emt 0:00:00]} Qc4+ {[%emt 0:00:00]} 63. Kb6 {[%emt 0:00:00]} Rb3+ {[%emt 0:00:00]} 64. Ka5 {[%emt 0:00:00]} Qb4+ {[%emt 0:00:00]} 65. Ka6 {[%emt 0:00:00]} Ra3# {[%emt 0:00:00]} 0-1

[Event "Begum Laila Alam 12th Women 2022"]
[Site "Dhaka"]
[Date "2022.05.06"]
[Round "2.1"]
[White "Warsia, Khusbu"]
[Black "Noshin, Anjum"]
[Result "1/2-1/2"]
[ECO "C78"]
[WhiteElo "1575"]
[BlackElo "2065"]
[Annotator "TA"]
[PlyCount "101"]
[EventDate "2022.05.05"]
[EventType "swiss"]
[EventCountry "BAN"]
[SourceTitle "playchess.com"]
[Source "ChessBase"]
[SourceQuality "1"]
[TimeControl "5400+30"]

{[%evp 14,101,10,-8,0,0,7,7,7,0,0,0,0,0,6,-43,-24,-79,-63,-55,-66,-60,-24,-28,-3,-65,-68,-84,-72,-98,-79,-75,-23,-35,-28,-26,0,-50,-14,-116,-50,-64,-61,-67,-50,-52,-21,-32,-27,-77,-81,-347,-319,-343,-345,-303,-28,-322,-28,-275,-28,-207,-26,-26,-27,-28,-28,-28,-28,-28,0,0,0,0,0,0,0,0,0,0,0,0,0,0,0,0,0,0,29985,12844]} 1. e4 {[%emt 0:00:03]} e5 {[%emt 0:00:13]} 2. Nf3 {[%emt 0:00:08]} Nc6 {[%emt 0:00:20]} 3. Bb5 {[%emt 0:00:15][%cal Bf1b5,Bb5a4,Ba4b3][%mdl 32]} a6 {[%emt 0:00:08]} 4. Ba4 {[%emt 0:00:06]} Nf6 {[%emt 0:00:06]} 5. O-O {[%emt 0:00:12]} b5 {[%emt 0:00:03]} 6. Bb3 {[%emt 0:00:07]} Bc5 {[%emt 0:00:05]} 7. d3 {[%emt 0:00:30] Recently 7.a4 got a lot of attention.} d6 {[%emt 0:00:26]} 8. h3 {[%emt 0:00:06]} h6 {[%emt 0:00:16] C78: Ruy Lopez: Archangelsk and Möller Defences.} 9. c3 {[%emt 0:00:11]} O-O {[%emt 0:01:09]} 10. Nbd2 {[%emt 0:00:16]} Bb6 {[%emt 0:02:24] The position is equal.} 11. a4 {[%emt 0:00:21] With the idea axb5.} Bd7 {[%emt 0:05:46]} 12. Re1 {[%emt 0:03:27]} Na5 {[%emt 0:08:28]} 13. Bc2 {[%emt 0:00:22]} c5 {[%emt 0:00:05][%cal Bc7c5,Bc5b4][%mdl 32] [#]} 14. b3 $146 {[%emt 0:13:19]} (14. Nf1 b4 15. Ne3 Rb8 16. Nh2 Be6 17. Nhg4 Nxg4 18. hxg4 b3 19. Bb1 c4 20. dxc4 Bxe3 21. Rxe3 Nxc4) (14. Nh4 $11) ({Predecessor:} 14. Nf1 b4 15. Ne3 Rb8 16. Nh2 Be6 17. Nhg4 Nxg4 18. hxg4 b3 19. Bb1 c4 20. dxc4 Bxe3 21. Rxe3 Nxc4 {0-1 (66) Wang,J (2369)-Shen,Y (2449) Xinghua 2015}) 14... Re8 {[%emt 0:11:09]} 15. Ba3 {[%emt 0:01:46]} (15. Nf1 $11) 15... b4 {[%emt 0:09:05]} 16. cxb4 {[%emt 0:02:01]} cxb4 {[%emt 0:00:04]} 17. Bb2 {[%emt 0:00:17]} Qc7 {[%emt 0:06:42]} 18. d4 {[%emt 0:19:24]} Rac8 {[%emt 0:09:22]} 19. Rc1 {[%emt 0:02:43]} (19. Bd3 $11) 19... Qa7 $15 {[%emt 0:00:16][%cal Re5d4]} 20. Nf1 {[%emt 0:00:47]} Nc6 {[%emt 0:02:50][%cal Rc6d4]} 21. Ng3 {[%emt 0:05:12]} a5 {[%emt 0:06:58][%cal Rc6d4]} 22. Ne2 {[%emt 0:05:14]} Re7 {[%emt 0:02:44]} (22... exd4 23. Nexd4 Nxd4 24. Bxd4 Bxd4 25. Qxd4 Qxd4 26. Nxd4 Nxe4) ({Better is} 22... exd4 $17 {Threatens to win with ...d3.} 23. Nexd4 Nxd4 24. Bxd4 Bxd4 25. Qxd4 Qxd4 26. Nxd4 Nxe4 $1) 23. Qd2 $11 {[%emt 0:04:55]} Rce8 {[%emt 0:05:14]} 24. Rcd1 {[%emt 0:00:33]} exd4 {[%emt 0:07:41]} (24... d5 {feels hotter.} 25. exd5 Nxd5 26. Ng3 Nxd4 27. Nxd4 Bxd4 28. Bxd4 exd4 29. Rxe7 Nxe7 30. Qxd4 Qxd4 31. Rxd4 Be6) 25. Ng3 {[%emt 0:01:00]} ({White should try} 25. Nexd4 $11 Nxd4 26. Bxd4) 25... d5 {[%emt 0:03:50]} 26. Nxd4 {[%emt 0:02:05]} (26. exd5 Rxe1+ 27. Rxe1 Rxe1+ 28. Qxe1 Nxd5 29. Qe4) (26. exd5 $1 $11 Rxe1+ 27. Rxe1 Rxe1+ 28. Qxe1 Nxd5 29. Qe4) 26... Nxd4 {[%emt 0:03:16]} ({Much less strong is} 26... dxe4 27. Nxc6 Bxc6 28. Bxf6 gxf6 29. Qf4 $14) (26... Nxe4 $17 27. Bxe4 dxe4 28. Rxe4 (28. Ndf5 e3 $17) 28... Rxe4 29. Nxe4 Rxe4) 27. Bxd4 $15 {[%emt 0:00:10]} Bxd4 {[%emt 0:00:27]} (27... dxe4 $2 28. Bxf6 e3 29. Qd3 $18 (29. Bh7+ $2 Kxh7 30. fxe3 Rxe3 $19)) (27... Nxe4 {keeps more tension.} 28. Bxe4 dxe4 29. Rxe4 Rxe4 30. Nxe4 Be6) 28. Qxd4 {[%emt 0:00:08]} Qxd4 {[%emt 0:00:03]} (28... Qc7 {looks sharper.} 29. Bb1 dxe4 30. Nxe4 Nxe4 31. Bxe4 Bf5) 29. Rxd4 {[%emt 0:00:06]} dxe4 {[%emt 0:00:08]} (29... g6 {is more complex.} 30. Red1 Rc8 31. R1d2 Bc6) 30. Nxe4 {[%emt 0:00:18]} Nxe4 {[%emt 0:00:10]} 31. Rdxe4 {[%emt 0:00:12]} (31. Bxe4 $11 {keeps the balance.} Kf8 32. Re3) 31... Rxe4 $17 {[%emt 0:00:08]} 32. Rxe4 {[%emt 0:00:13][%mdl 8192]} (32. Bxe4 $17 {was the only defense.} Kf8 33. Re3) 32... Rxe4 $19 {[%emt 0:00:10]} 33. Bxe4 $11 {[%emt 0:00:02][%mdl 4096] Endgame KB-KB} Be6 {[%emt 0:00:07] Against Bd5} 34. Bc2 {[%emt 0:00:12]} Kf8 $2 {[%emt 0:02:23]} (34... g5 $1 $19 35. Kf1 Kg7) 35. Kf1 $2 {[%emt 0:00:06][%mdl 8192]} (35. h4 $1 $11 {and White stays safe.}) 35... Ke7 $2 {[%emt 0:00:04]} (35... g5 $1 $19 36. Ke2 Ke7) 36. Ke2 $2 {[%emt 0:00:06] [#]} (36. h4 $1 $11) 36... Kd6 $2 {[%emt 0:03:11]} (36... g5 $1 $19 {aiming for ...Kf6.} 37. Ke3 Kd6) 37. Ke3 $2 {[%emt 0:00:14] [#]} (37. h4 $1 $11 {and White is okay.}) 37... Kc5 $2 {[%emt 0:02:09]} (37... g5 $1 $19 {Hoping for ...Ke5.} 38. Bd1 Ke5) 38. h4 $1 {[%emt 0:00:24]} g5 {[%emt 0:04:50]} 39. hxg5 {[%emt 0:04:39]} hxg5 {[%emt 0:00:05]} 40. f3 {[%emt 0:00:10]} g4 {[%emt 0:06:11]} 41. fxg4 {[%emt 0:12:11]} Bxg4 {[%emt 0:00:06]} (41... f6 $5 {[%cal Re6g4]}) 42. Kf4 {[%emt 0:01:03]} Be6 {[%emt 0:01:46]} 43. Ke5 {[%emt 0:00:32]} Bd5 {[%emt 0:00:44]} 44. g4 {[%emt 0:01:06]} Bf3 {[%emt 0:00:30]} 45. g5 {[%emt 0:00:10]} Bd5 {[%emt 0:00:11]} 46. Bd1 {[%emt 0:00:12]} Kc6 {[%emt 0:00:25]} 47. Bc2 {[%emt 0:00:25]} Kc5 {[%emt 0:00:04]} 48. Bd1 {[%emt 0:00:15]} Kc6 {[%emt 0:00:11]} 49. Bc2 {[%emt 0:00:09]} Kc5 {[%emt 0:00:12]} 50. Bd1 {[%emt 0:00:06]} Be4 $2 {[%mdl 8192]} 51. Kxe4 {[%mdl 32768] Never resign too early!  Weighted Error Value: White=0.58/Black=0.75. An unexpected result.} 1/2-1/2